bitfinex/quotes_ETHUSD_20260120
["timestamp","ask_amount","ask_price","bid_price","bid_amount"]
[1768941317565,0.534,2997.9,2997.0,0.42909006]
[1768941318390,0.99907878,2998.1,2997.0,0.42909006]
[1768941318609,1.53207878,2998.3,2997.0,0.42909006]
[1768941318796,0.533,2998.3,2997.0,0.42909006]
[1768941319007,0.99907878,2998.2,2997.0,0.42909006]
[1768941319410,0.99907878,2998.2,2997.1,3.33655867]
[1768941319721,0.99907878,2998.2,2997.3,0.42909006]
[1768941320417,0.99907878,2998.4,2997.3,0.42909006]
[1768941320726,0.533,2998.5,2997.3,0.42909006]
[1768941320877,0.99907878,2998.4,2997.3,0.42909006]
[1768941321277,0.99907878,2998.4,2997.0,0.42909006]
[1768941321483,0.99907878,2998.4,2996.7,0.002]
[1768941321484,0.99907878,2998.4,2997.2,0.42909006]
[1768941323234,0.99907878,2998.4,2997.3,0.42909006]
[1768941323596,1.53307878,2998.4,2997.5,0.42909006]
[1768941326205,0.99907878,2998.3,2997.5,0.42909006]
[1768941332212,0.99907878,2998.3,2997.5,3.76518657]
[1768941332537,0.99907878,2998.5,2997.8,0.42909006]
[1768941332737,0.99907878,2998.9,2998.5,0.1739]
[1768941332921,0.99907878,2998.8,2998.2,0.97909006]
[1768941333122,0.99907878,2998.8,2997.6,0.97909006]
[1768941333323,0.99907878,2998.8,2997.8,0.97909006]
[1768941333641,0.99907878,2998.8,2997.5,6.67220993]
[1768941333642,0.99907878,2998.8,2997.6,0.97909006]
[1768941335240,0.99907878,2998.8,2997.5,3.33605985]
[1768941335443,0.99907878,2998.8,2997.6,0.97909006]
[1768941337360,0.99907878,2998.8,2997.7,0.97909006]
[1768941338858,0.99907878,2998.6,2997.7,0.97909006]
[1768941339058,0.99907878,2998.6,2997.4,0.97909006]
[1768941339366,0.99907878,2998.6,2996.1,3.33842371]
[1768941339367,0.99907878,2998.5,2997.2,0.97909006]
[1768941340569,0.99907878,2998.5,2997.2,4.31550979]
[1768941340878,0.99907878,2998.5,2997.2,0.97909006]
[1768941341295,0.99907878,2998.3,2997.2,4.31551457]
[1768941341445,0.99907878,2998.1,2997.2,4.31551457]
[1768941341864,0.99907878,2998.1,2997.3,0.97909006]
[1768941343846,0.99907878,2998.1,2997.0,4.31573365]
[1768941344047,0.99907878,2998.1,2997.1,0.97909006]
[1768941344281,0.99907878,2998.1,2997.2,1.39556828]
[1768941344650,0.99907878,2998.1,2997.3,0.96399491]
[1768941345466,0.99907878,2998.1,2997.4,0.92876334]
[1768941345660,0.96076626,2998.3,2997.6,0.92876334]
[1768941345875,0.96076626,2998.9,2997.6,0.92876334]
[1768941346203,0.96076626,2998.4,2997.6,0.92876334]
[1768941346697,0.535,2998.6,2997.6,0.92876334]
[1768941346998,0.96076626,2998.5,2997.6,0.92876334]
[1768941353377,0.001,2998.6,2997.6,0.92876334]
[1768941353583,0.96176626,2998.6,2997.6,0.92876334]
[1768941353798,0.96176626,2998.6,2997.7,0.92876334]
[1768941354491,0.96176626,2998.6,2997.5,0.002]
[1768941354492,0.96076626,2997.9,2997.5,0.002]
[1768941355113,0.96076626,2997.6,2997.5,0.002]
[1768941357020,0.995421,2997.7,2997.5,0.002]
[1768941357222,0.03465474,2997.7,2997.5,0.002]
[1768941357523,0.03465474,2997.7,2997.3,0.93076334]
[1768941358619,0.03465474,2997.7,2997.5,0.002]
[1768941358815,0.03465474,2997.7,2997.3,0.93076334]
[1768941360332,0.03465474,2997.7,2997.3,0.002]
[1768941361211,0.995421,2997.7,2997.3,0.002]
[1768941362190,0.96076626,2998.1,2997.6,0.05032673]
[1768941362724,0.96076626,2998.1,2997.3,0.002]
[1768941364208,0.96076626,2998.0,2997.3,0.05232673]
[1768941365633,0.96076626,2998.4,2997.3,3.38866276]
[1768941365929,0.96076626,2998.4,2997.7,0.05032673]
[1768941366829,0.96076626,2998.4,2997.5,5.31218629]
[1768941367035,0.96076626,2998.4,2997.5,0.05032673]
[1768941369911,0.96076626,2998.3,2997.5,5.31218629]
[1768941370413,0.96076626,2998.3,2997.5,0.05232673]
[1768941370632,0.96076626,2998.1,2997.5,0.05232673]
[1768941372330,0.05032673,2997.5,2997.3,0.05232673]
[1768941372606,0.05032673,2997.5,2997.3,0.002]
[1768941373746,0.05032673,2997.5,2997.3,0.05232673]
[1768941374059,0.05032673,2997.5,2997.3,0.39120353]
[1768941376333,0.93335065,2998.2,2997.4,0.05032673]
[1768941376512,0.001,2998.2,2997.6,0.60032673]
[1768941376842,0.93335065,2998.2,2997.6,0.60032673]
[1768941379114,0.001,2998.2,2997.8,0.60032673]
[1768941379314,0.001,2998.2,2997.9,1.18654536]
[1768941379840,0.001,2998.2,2998.0,0.60032673]
[1768941380345,0.93235065,2998.5,2998.0,0.60032673]
[1768941381613,0.76335065,2998.7,2998.1,5.86218629]
[1768941381849,0.76335065,2998.7,2998.2,0.76932673]
[1768941382409,0.76335065,2998.7,2998.2,1.37244536]
[1768941382653,0.001,2999.0,2998.2,1.37244536]
[1768941382654,0.001,2999.0,2998.5,0.76932673]
[1768941383152,0.93335065,2999.0,2998.5,0.76932673]
[1768941384637,0.001,2999.0,2998.6,0.76932673]
[1768941386332,0.93335065,2999.0,2998.4,0.76932673]
[1768941386532,0.93335065,2999.0,2998.5,1.42604536]
[1768941388168,0.001,2999.2,2998.7,5.26185956]
[1768941388465,0.001,2999.9,2999.2,0.76832673]
[1768941388638,0.001,2999.9,2999.0,0.17378891]
[1768941388639,0.001,2999.9,2999.4,0.76832673]
[1768941388847,0.001,2999.9,2999.6,0.76832673]
[1768941389354,0.001,2999.9,2999.5,0.536]
[1768941389355,0.93235065,2999.8,2999.5,0.536]
[1768941389560,0.93235065,2999.8,2999.2,0.536]
[1768941391652,0.93235065,2999.8,2999.0,0.17378891]
[1768941391852,0.93235065,2999.8,2999.1,0.536]
[1768941392577,0.93235065,2999.8,2999.0,0.94211564]
[1768941393152,0.001,2999.9,2999.0,0.17378891]
[1768941393153,0.93235065,2999.6,2999.0,0.17378891]
[1768941393744,0.93235065,2999.6,2998.8,1.30512673]
[1768941394781,0.93235065,2999.6,2998.9,0.76832673]
[1768941395148,0.93335065,2999.6,2998.9,0.76832673]
[1768941398448,0.93335065,2999.6,2998.8,0.0008]
[1768941398765,0.93235065,2999.0,2998.5,0.0008]
[1768941398974,0.93235065,2998.8,2998.5,0.0008]
[1768941399357,0.93235065,2998.8,2998.2,0.002]
[1768941399559,0.93235065,2998.6,2998.0,0.002]
[1768941399758,0.93235065,2998.6,2997.6,1.30512673]
[1768941400193,0.93235065,2998.6,2997.6,0.76912673]
[1768941400363,0.93235065,2998.4,2997.6,0.76912673]
[1768941400993,0.93235065,2998.4,2997.5,0.002]
[1768941401400,0.93235065,2998.4,2997.3,0.002]
[1768941403290,0.93235065,2998.3,2997.3,0.002]
[1768941403814,0.93235065,2998.3,2996.8,0.002]
[1768941403963,0.93235065,2998.1,2996.8,0.002]
[1768941404366,0.96747649,2997.9,2996.8,0.002]
[1768941404664,0.96747649,2997.7,2996.8,0.002]
[1768941404863,0.96747649,2997.7,2996.7,0.002]
[1768941405063,0.93889337,2997.6,2996.4,0.002]
[1768941405293,0.93889337,2997.4,2996.1,0.0028]
[1768941406808,0.93889337,2997.3,2996.1,0.0028]
[1768941407011,0.93889337,2997.1,2996.1,0.0028]
[1768941407485,0.93889337,2997.1,2996.3,0.002]
[1768941407686,0.93889337,2997.1,2996.1,0.0028]
[1768941408840,0.534,2997.2,2996.1,0.0028]
[1768941408841,0.93889337,2997.0,2996.1,0.0028]
[1768941409212,0.534,2997.2,2996.1,0.0028]
[1768941409213,0.93889337,2997.2,2996.1,0.77312673]
[1768941409414,0.93889337,2997.4,2996.3,0.67306773]
[1768941409615,0.93889337,2997.8,2996.4,0.67306773]
[1768941409917,0.93889337,2997.8,2996.5,0.67306773]
[1768941410134,0.93889337,2998.1,2996.5,0.67306773]
[1768941410960,0.93889337,2998.1,2996.7,0.67306773]
[1768941411459,0.93889337,2997.9,2996.7,0.67306773]
[1768941416369,0.97239337,2997.9,2996.7,0.67306773]
[1768941418161,0.97239337,2997.9,2996.8,0.67306773]
[1768941418364,0.0335,2997.9,2996.8,0.67306773]
[1768941418565,0.97239337,2997.9,2996.8,0.67306773]
[1768941418866,0.97239337,2997.9,2997.0,0.67306773]
[1768941419568,0.97339337,2997.9,2997.0,0.67306773]
[1768941420272,0.97339337,2997.9,2996.8,0.67306773]
[1768941421174,0.97339337,2997.9,2997.0,0.67306773]
[1768941422740,0.97339337,2997.9,2997.1,0.67306773]
[1768941422980,0.97339337,2997.9,2997.3,0.67306773]
[1768941423294,3.33494527,2998.6,2997.4,0.67306773]
[1768941423295,0.93889337,2998.6,2997.4,0.67306773]
[1768941423799,0.93889337,2998.6,2997.2,3.73737154]
[1768941423953,0.93889337,2998.6,2997.3,1.44775742]
[1768941424471,0.93889337,2998.6,2997.4,0.67306773]
[1768941426069,0.93889337,2998.6,2997.2,0.67306773]
[1768941426280,0.93889337,2998.5,2997.2,0.67306773]
[1768941426476,0.93889337,2998.5,2997.3,0.67306773]
[1768941426647,0.93889337,2998.5,2997.4,0.67306773]
[1768941428149,0.93889337,2998.5,2997.5,0.67306773]
[1768941428351,0.93889337,2998.4,2997.5,0.67306773]
[1768941430181,0.93889337,2998.4,2997.4,3.33622249]
[1768941430182,0.93889337,2998.4,2997.7,0.67306773]
[1768941431564,0.93989337,2998.4,2997.7,0.67306773]
[1768941431885,0.93989337,2998.4,2997.8,0.67306773]
[1768941435570,0.93989337,2998.4,2997.6,0.002]
[1768941438796,0.93989337,2998.4,2997.4,0.002]
[1768941439304,0.93989337,2998.4,2997.0,0.67506773]
[1768941439305,0.94768515,2998.3,2997.0,0.67506773]
[1768941439510,0.94768515,2998.1,2997.1,0.67506773]
[1768941439802,0.94768515,2998.1,2997.2,0.67506773]
[1768941439803,0.94768515,2998.0,2997.2,0.67506773]
[1768941441568,0.94768515,2998.0,2997.3,0.67506773]
[1768941443994,0.94768515,2998.0,2997.4,0.002]
[1768941444993,0.94768515,2998.0,2997.4,0.67706773]
[1768941447098,0.94768515,2998.0,2997.4,0.002]
[1768941447464,0.94768515,2997.8,2997.1,0.002]
[1768941447665,0.94768515,2997.8,2996.7,0.67706773]
[1768941448084,0.94768515,2997.8,2996.7,4.01403655]
[1768941448284,0.94768515,2997.8,2996.8,0.67706773]
[1768941449308,0.94768515,2997.8,2997.3,0.67706773]
[1768941450510,0.94768515,2997.8,2997.1,0.67706773]
[1768941450807,0.94768515,2997.8,2996.9,0.67706773]
[1768941452888,0.94768515,2997.8,2996.7,0.537]
[1768941453198,0.94768515,2997.8,2996.9,0.67706773]
[1768941453378,0.94768515,2997.8,2997.0,0.67706773]
[1768941454093,0.94768515,2997.8,2996.9,0.45508975]
[1768941454300,0.94768515,2997.8,2996.9,4.46893166]
[1768941454701,0.94768515,2997.8,2997.0,4.01371391]
[1768941455005,0.94768515,2997.8,2997.1,0.67706773]
[1768941456296,0.94768515,2997.8,2997.3,0.002]
[1768941456483,0.94768515,2997.8,2997.1,0.67706773]
[1768941456685,0.94868515,2997.8,2996.9,1.13215748]
[1768941457011,0.94868515,2997.8,2997.0,0.67906773]
[1768941458911,0.94868515,2997.8,2997.1,0.67706773]
[1768941462130,0.94868515,2997.8,2997.0,0.67906773]
[1768941463131,0.94868515,2997.8,2997.0,0.002]
[1768941463600,0.94868515,2997.8,2997.0,0.67906773]
[1768941464528,0.94868515,2997.8,2997.1,0.67706773]
[1768941464730,0.94868515,2997.8,2997.2,0.67706773]
[1768941464731,0.001,2997.8,2997.2,0.67706773]
[1768941464930,0.97037107,2998.0,2997.2,0.67706773]
[1768941465130,0.97037107,2998.0,2997.3,0.67706773]
[1768941465499,0.97037107,2998.0,2997.1,0.40157336]
[1768941465699,0.97037107,2998.0,2997.2,0.67706773]
[1768941467928,0.97037107,2998.0,2997.3,0.67706773]
[1768941468724,0.97037107,2998.0,2997.3,0.67906773]
[1768941469032,0.001,2997.8,2997.3,0.67906773]
[1768941471524,0.92898899,2997.8,2997.3,0.002]
[1768941472138,0.92898899,2997.8,2997.3,0.67906773]
[1768941480339,0.92898899,2997.8,2997.5,0.002]
[1768941483418,0.92898899,2997.8,2997.3,0.67906773]
[1768941484237,0.92898899,2997.8,2997.4,0.67706773]
[1768941484860,0.001,2998.4,2998.0,0.67606773]
[1768941485038,0.92798899,2998.5,2998.1,5.26357245]
[1768941485213,0.92798899,2998.5,2998.0,0.67606773]
[1768941486021,0.92798899,2998.5,2997.9,5.26357245]
[1768941486234,0.92798899,2998.5,2997.9,6.5336042]
[1768941487840,0.92798899,2998.5,2997.7,1.21306773]
[1768941489127,0.92798899,2998.5,2997.6,0.67606773]
[1768941490027,0.92798899,2998.5,2997.7,0.67606773]
[1768941491560,0.92798899,2998.5,2997.5,9.13664203]
[1768941491561,0.92798899,2998.5,2998.0,0.67606773]
[1768941491924,0.92798899,2998.9,2998.2,0.67606773]
[1768941494332,0.92798899,2998.9,2997.9,5.26557245]
[1768941494528,0.92798899,2998.9,2997.9,0.002]
[1768941494958,0.93186555,2998.6,2997.6,0.002]
[1768941498862,0.93186555,2998.3,2997.6,0.002]
[1768941499034,0.93186555,2998.1,2997.3,0.002]
[1768941505862,0.93186555,2998.1,2997.0,0.002]
[1768941505863,0.93186555,2997.7,2997.5,0.002]
[1768941506064,0.93186555,2997.7,2997.0,0.002]
[1768941507443,0.535,2997.6,2996.7,0.00200001]
[1768941507650,0.93186555,2997.5,2996.5,0.00400001]
[1768941507968,0.93186555,2997.3,2996.5,0.00400001]
[1768941508166,0.93186555,2997.3,2996.6,0.00200001]
[1768941508962,0.93186555,2997.3,2996.5,0.00400001]
[1768941509277,0.93186555,2997.3,2996.6,0.00200001]
[1768941511048,0.93186555,2997.3,2996.5,0.00400001]
[1768941511444,0.93186555,2997.3,2996.6,0.00200001]
[1768941511872,0.93186555,2997.3,2996.5,0.002]
[1768941512373,0.93186555,2997.3,2996.5,0.00400001]
[1768941514146,0.96526555,2997.3,2996.5,0.00400001]
[1768941514672,0.93186555,2997.2,2996.2,0.002]
[1768941514878,0.93186555,2997.0,2996.2,0.00400001]
[1768941515253,0.93186555,2997.0,2996.2,0.002]
[1768941516685,0.93186555,2997.0,2996.1,0.002]
[1768941517195,0.93186555,2997.0,2996.0,0.002]
[1768941517347,0.93186555,2996.8,2996.0,0.002]
[1768941517542,0.93186555,2996.6,2996.0,0.002]
[1768941518045,0.93186555,2996.6,2996.1,0.002]
[1768941518245,0.93186555,2996.6,2996.0,0.002]
[1768941518573,0.93186555,2996.6,2995.9,0.002]
[1768941518785,0.93186555,2996.6,2995.8,0.002]
[1768941518986,0.93186555,2996.4,2995.5,0.002]
[1768941519387,0.93186555,2996.4,2995.4,0.00200001]
[1768941521284,0.93186555,2996.4,2995.3,0.002]
[1768941521285,0.93186555,2996.4,2995.3,0.00400001]
[1768941522296,0.93186555,2996.4,2995.3,0.002]
[1768941522501,0.93186555,2996.2,2995.3,0.002]
[1768941522678,0.93186555,2996.0,2995.3,0.002]
[1768941523182,0.93186555,2996.0,2995.3,0.00400001]
[1768941523383,0.535,2996.1,2995.4,0.00200001]
[1768941523599,1.46686555,2996.1,2995.4,0.00200001]
[1768941524391,0.9583635,2996.0,2995.4,0.00200001]
[1768941526092,0.95976051,2996.3,2995.7,0.00200001]
[1768941526964,6.22267749,2997.1,2995.7,0.00200001]
[1768941527169,1.49476051,2997.0,2996.1,0.00200001]
[1768941527387,0.95976051,2996.9,2996.1,0.00200001]
[1768941528392,0.95976051,2996.9,2995.9,0.00200001]
[1768941528696,0.95976051,2996.4,2995.5,0.00200001]
[1768941528999,0.95976051,2996.3,2995.5,0.00200001]
[1768941530113,0.95976051,2996.3,2995.9,0.002]
[1768941530277,0.95976051,2996.3,2995.6,0.00200001]
[1768941530594,0.95976051,2996.3,2995.6,0.00400001]
[1768941532083,0.95976051,2996.2,2995.6,0.002]
[1768941532385,0.95976051,2996.0,2995.6,0.002]
[1768941532584,0.95976051,2996.0,2995.3,0.002]
[1768941532807,0.95976051,2996.0,2995.2,0.00280001]
[1768941532808,0.95976051,2995.8,2995.2,0.0008]
[1768941532976,0.95976051,2995.8,2995.0,0.002]
[1768941537745,0.95976051,2995.8,2995.1,0.00200001]
[1768941538730,1.49476051,2995.7,2995.1,0.00200001]
[1768941539031,0.95976051,2995.7,2995.1,0.00200001]
[1768941540712,0.95976051,2995.7,2995.0,0.002]
[1768941541218,0.99316051,2995.7,2995.0,0.002]
[1768941541419,0.95976051,2995.6,2995.0,0.002]
[1768941541635,0.95976051,2995.4,2995.0,0.002]
[1768941542036,0.95976051,2995.4,2994.5,0.002]
[1768941542213,0.95976051,2995.4,2994.6,0.00200001]
[1768941543219,5.89183044,2995.5,2993.6,0.0008]
[1768941543220,5.26592217,2995.0,2993.7,0.00200001]
[1768941543417,0.62590827,2995.5,2994.6,0.00200001]
[1768941543418,0.95976051,2995.4,2994.6,0.00200001]
[1768941543629,0.95976051,2995.2,2994.4,0.00200001]
[1768941543812,0.95976051,2995.2,2994.6,0.00200001]
[1768941544222,0.95976051,2995.2,2995.0,0.002]
[1768941544544,0.95976051,2995.2,2994.7,0.00200001]
[1768941544711,5.29932217,2995.7,2994.7,0.00200001]
[1768941544712,0.95976051,2995.5,2994.7,0.00200001]
[1768941545837,0.95976051,2995.5,2994.5,0.00200001]
[1768941546246,0.95976051,2995.3,2994.5,0.00200001]
[1768941547643,0.95976051,2995.3,2994.3,0.00200001]
[1768941548741,0.95976051,2995.3,2994.3,5.26592217]
[1768941548941,0.95976051,2995.3,2994.4,0.00200001]
[1768941549118,0.95976051,2995.3,2994.6,0.00200001]
[1768941549818,0.95976051,2995.3,2994.0,0.538]
[1768941549819,0.95976051,2995.2,2994.4,0.00200001]
[1768941550955,0.95976051,2995.2,2994.2,0.00200001]
[1768941552019,0.95976051,2994.7,2993.8,0.00400001]
[1768941552260,0.95976051,2994.7,2994.0,0.00200001]
[1768941553055,0.95976051,2994.7,2994.1,0.00200001]
[1768941553257,0.95976051,2994.7,2993.8,0.002]
[1768941553458,5.80192217,2994.8,2993.8,0.002]
[1768941553459,0.95976051,2994.5,2993.8,0.00400001]
[1768941553626,0.95976051,2994.5,2993.9,0.00200001]
[1768941555630,0.98387808,2994.7,2993.9,0.00200001]
[1768941555954,0.98387808,2994.7,2994.2,0.002]
[1768941556771,0.98387808,2994.7,2994.2,5.26792217]
[1768941556936,1.51987808,2995.1,2994.5,0.00200001]
[1768941557135,1.51987808,2995.1,2994.4,5.26592217]
[1768941557454,0.98387808,2995.0,2994.2,5.79491439]
[1768941559979,0.98387808,2995.0,2994.2,0.52899222]
[1768941560192,0.98387808,2995.0,2994.2,0.002]
[1768941562298,1.01727808,2995.0,2994.2,0.002]
[1768941566290,1.01727808,2995.0,2994.2,5.26792217]
[1768941568379,1.01727808,2995.0,2994.4,0.002]
[1768941568765,0.98487808,2994.8,2994.4,0.002]
[1768941568968,0.001,2994.8,2994.4,5.26792217]
[1768941569274,0.001,2994.8,2994.4,5.79491439]
[1768941569468,0.001,2994.8,2994.4,0.52899222]
[1768941569783,0.98487808,2994.8,2994.4,0.52899222]
[1768941570286,0.0334,2995.0,2994.4,5.79491439]
[1768941570786,0.98487808,2995.3,2994.9,5.26592217]
[1768941571085,0.98487808,2995.3,2994.4,7.7460845]
[1768941571086,0.98387808,2995.7,2995.1,5.43592217]
[1768941571382,0.98387808,2995.7,2995.1,2.09406847]
[1768941571897,0.98387808,2995.7,2994.9,5.26592217]
[1768941572402,0.03815658,2995.1,2994.9,5.26592217]
[1768941572607,0.98387808,2995.7,2994.9,5.26592217]
[1768941573402,0.98387808,2995.5,2994.4,0.002]
[1768941573613,0.10014369,2994.9,2994.4,0.91675649]
[1768941574106,0.10014369,2994.9,2994.4,4.25630842]
[1768941574594,1.6088581,2995.4,2994.5,8.60534566]
[1768941574898,0.98387808,2995.7,2994.5,5.27232147]
[1768941575504,0.98387808,2995.6,2994.5,5.27232147]
[1768941576902,0.536,2995.5,2994.6,3.33934415]
[1768941577405,1.51987808,2995.5,2994.7,5.27232147]
[1768941577582,0.98387808,2995.5,2994.7,5.27232147]
[1768941577783,0.98387808,2995.5,2994.8,0.86116656]
[1768941579101,0.98387808,2995.5,2994.5,8.61174859]
[1768941579310,0.98387808,2995.5,2994.7,5.27232147]
[1768941580910,0.98387808,2995.5,2994.7,0.002]
[1768941581213,0.98487808,2995.5,2994.7,0.002]
[1768941583901,0.98487808,2995.5,2994.7,5.27432147]
[1768941584214,0.98487808,2995.5,2994.8,0.52743215]
[1768941584592,0.98487808,2995.5,2994.9,5.27232147]
[1768941584915,0.98487808,2995.5,2994.8,0.52743215]
[1768941587815,0.98487808,2995.5,2994.7,0.002]
[1768941594312,0.98487808,2995.5,2994.7,5.27432147]
[1768941597030,0.98487808,2995.5,2994.7,5.26932147]
[1768941597839,0.98487808,2995.5,2994.5,5.81232147]
[1768941599233,0.98487808,2995.5,2994.5,9.15175301]
[1768941599433,0.98487808,2995.5,2994.6,0.9153753]
[1768941600293,0.98487808,2995.5,2994.4,0.002]
[1768941600294,0.9798983,2994.9,2994.4,0.002]
[1768941600498,0.09395255,2994.5,2994.2,0.002]
[1768941600730,0.9798983,2994.7,2994.2,5.27432147]
[1768941600900,0.9798983,2994.7,2994.3,0.86161497]
[1768941601596,0.9798983,2994.7,2994.2,0.002]
[1768941604410,0.9798983,2994.7,2994.4,0.002]
[1768941604611,0.9798983,2995.0,2994.4,0.002]
[1768941604810,0.9798983,2995.0,2994.4,5.27432147]
[1768941605215,0.9798983,2995.0,2994.5,0.01643437]
[1768941605416,0.9798983,2995.0,2994.4,5.27432147]
[1768941605628,0.9798983,2995.0,2994.4,0.002]
[1768941605925,0.9798983,2994.7,2994.2,0.002]
[1768941606102,0.9798983,2994.7,2994.1,0.002]
[1768941606303,0.9798983,2994.7,2994.0,0.002]
[1768941606623,0.9798983,2994.7,2994.0,0.004]
[1768941606826,0.9798983,2994.7,2994.0,5.27632147]
[1768941607133,0.9798983,2994.7,2994.0,5.80415362]
[1768941608104,0.9798983,2994.7,2994.0,0.002]
[1768941608309,0.9798983,2994.7,2994.0,0.004]
[1768941608836,0.9798983,2994.7,2994.0,0.002]
[1768941612255,1.0135983,2994.7,2994.1,0.002]
[1768941612453,0.0337,2994.7,2994.2,0.002]
[1768941612654,0.0337,2994.7,2994.4,0.002]
[1768941613446,0.001,2995.3,2994.8,0.002]
[1768941613628,0.001,2995.3,2994.9,5.27432147]
[1768941613833,0.001,2995.3,2995.0,0.002]
[1768941614045,0.001,2995.3,2995.0,0.52943215]
[1768941614472,0.001,2996.1,2995.2,0.002]
[1768941614676,0.9798983,2996.0,2995.3,5.27232147]
[1768941614860,0.537,2996.1,2995.6,0.97764912]
[1768941615388,1.46116524,2996.1,2995.6,0.97764912]
[1768941615735,0.92416524,2996.0,2995.3,0.9798983]
[1768941615932,0.92516524,2996.1,2995.4,0.9798983]
[1768941616152,0.92516524,2996.1,2995.6,0.9798983]
[1768941618742,0.001,2996.1,2995.6,0.9798983]
[1768941618949,0.92516524,2996.1,2995.4,0.9798983]
[1768941619146,0.92516524,2996.1,2995.5,0.72651184]
[1768941619339,0.92516524,2996.1,2995.3,1.01289859]
[1768941619536,0.92516524,2996.1,2995.3,1.99279689]
[1768941620359,0.92516524,2996.1,2995.4,0.9798983]
[1768941621474,0.001,2996.1,2995.6,0.9798983]
[1768941621872,0.92516524,2996.1,2995.6,0.9798983]
[1768941622377,0.001,2996.1,2995.7,0.9798983]
[1768941622675,0.92516524,2996.1,2995.6,0.62522198]
[1768941623448,0.001,2996.1,2995.7,0.9798983]
[1768941624077,0.92516524,2996.1,2995.6,0.62522198]
[1768941624269,0.92516524,2996.1,2995.5,0.9798983]
[1768941627777,0.001,2995.9,2995.5,0.9798983]
[1768941628184,0.001,2995.9,2995.7,0.9798983]
[1768941630165,0.001,2995.9,2995.6,0.9798983]
[1768941630581,0.92516524,2995.9,2995.3,1.5178983]
[1768941630788,0.92516524,2995.9,2995.4,1.99278722]
[1768941630984,0.92516524,2995.9,2995.4,1.01288892]
[1768941631184,0.92516524,2995.9,2995.4,1.99278722]
[1768941631862,0.92516524,2995.9,2995.3,0.9798983]
[1768941632063,0.92516524,2995.9,2995.0,8.61117583]
[1768941632292,0.92516524,2995.9,2995.2,0.9798983]
[1768941633064,0.92516524,2995.9,2995.3,0.9798983]
[1768941633262,0.92516524,2995.9,2995.4,0.9798983]
[1768941633490,0.92516524,2995.9,2995.4,1.9389744]
[1768941633682,0.92516524,2995.9,2995.4,0.9590761]
[1768941635117,0.001,2995.9,2995.4,0.9798983]
[1768941635408,0.001,2995.9,2995.6,0.9798983]
[1768941635700,0.92516524,2995.9,2995.4,0.9798983]
[1768941636896,0.001,2996.1,2995.5,0.99074063]
[1768941637098,0.92416524,2996.3,2995.5,1.95068538]
[1768941637301,0.92416524,2996.3,2994.8,3.33909125]
[1768941637302,0.92416524,2996.2,2995.0,0.99074063]
[1768941637502,0.92416524,2996.2,2995.3,0.99074063]
[1768941638571,0.92416524,2996.2,2995.4,0.99074063]
[1768941639399,0.92416524,2996.2,2995.3,8.60871634]
[1768941639400,0.92416524,2996.2,2995.6,0.002]
[1768941641513,0.92416524,2996.2,2995.6,0.99274063]
[1768941642097,0.92416524,2996.2,2995.6,1.61923162]
[1768941644906,0.92416524,2996.2,2995.7,0.90460958]
[1768941645085,0.92416524,2996.2,2995.7,0.62537412]
[1768941645286,0.92416524,2996.2,2995.6,0.62849099]
[1768941645287,0.92416524,2996.2,2995.6,1.49515383]
[1768941645676,0.92416524,2996.2,2995.6,0.002]
[1768941646802,0.92416524,2996.2,2995.4,0.002]
[1768941647121,0.98080576,2996.0,2995.4,0.002]
[1768941648487,0.98080576,2996.0,2995.0,3.33887481]
[1768941648675,0.98080576,2996.0,2995.1,0.86666284]
[1768941648878,0.98080576,2996.0,2995.1,1.81423353]
[1768941649071,0.98080576,2996.0,2995.2,0.86666284]
[1768941651422,0.98080576,2996.0,2995.6,0.002]
[1768941651596,0.98080576,2996.0,2995.2,0.86666284]
[1768941651797,0.98080576,2996.0,2995.4,0.002]
[1768941652114,0.98080576,2996.0,2995.2,0.86666284]
[1768941656307,0.98080576,2996.0,2995.0,0.86666284]
[1768941656501,0.98080576,2996.0,2995.0,1.40466284]
[1768941657328,0.98080576,2996.0,2995.0,1.86805298]
[1768941658497,0.98080576,2996.0,2995.1,0.86666284]
[1768941660203,5.80616926,2996.2,2994.8,0.86666284]
[1768941660204,0.98080576,2995.7,2994.8,0.86666284]
[1768941660429,0.98080576,2995.7,2994.8,1.40566284]
[1768941660729,0.98080576,2995.7,2993.8,6.85617881]
[1768941660730,0.98080576,2995.2,2994.4,0.86666284]
[1768941660928,5.27016926,2995.3,2994.4,0.86666284]
[1768941660929,0.98080576,2995.0,2994.4,0.86666284]
[1768941661633,0.98080576,2995.0,2994.3,0.86666284]
[1768941661802,0.98080576,2995.0,2994.2,0.86866284]
[1768941662930,0.98080576,2994.9,2994.2,0.002]
[1768941663117,0.98080576,2994.8,2994.4,0.002]
[1768941663322,0.98080576,2994.6,2994.2,0.002]
[1768941663523,0.98080576,2994.6,2994.0,0.002]
[1768941663724,0.98080576,2994.6,2994.1,0.002]
[1768941664641,0.98080576,2994.6,2994.0,0.002]
[1768941665203,0.98080576,2994.4,2994.0,0.002]
[1768941665426,0.98080576,2994.4,2993.8,0.002]
[1768941666040,0.98080576,2994.4,2993.8,1e-08]
[1768941666245,0.98080576,2994.2,2993.8,1e-08]
[1768941667352,0.98080576,2995.0,2993.8,0.91028319]
[1768941667517,0.98080576,2995.0,2993.3,0.002]
[1768941667518,0.98080576,2993.6,2993.3,0.002]
[1768941668045,5.27016926,2994.6,2993.1,0.93085637]
[1768941668350,0.98080576,2995.0,2994.4,0.08190916]
[1768941671431,0.98080576,2995.0,2994.2,0.93085637]
[1768941671630,0.98080576,2994.8,2994.2,0.93085637]
[1768941675451,0.001,2994.6,2994.2,0.93085637]
[1768941681026,0.94560992,2994.9,2994.4,0.96344158]
[1768941681227,0.537,2994.8,2994.4,0.96344158]
[1768941682256,1.48260992,2994.8,2994.4,0.96344158]
[1768941683061,0.537,2994.8,2994.4,0.96344158]
[1768941687156,0.537,2994.8,2994.4,0.96544158]
[1768941687355,0.001,2994.6,2994.4,0.96544158]
[1768941687557,0.77860992,2995.5,2994.6,0.96344158]
[1768941687863,0.77860992,2995.5,2994.4,0.62556108]
[1768941687864,0.537,2995.4,2995.0,0.86325319]
[1768941688068,1.48260992,2995.4,2995.0,0.86325319]
[1768941690156,1.48260992,2995.4,2994.7,5.27016926]
[1768941690157,0.94560992,2995.3,2994.7,5.27016926]
[1768941690358,0.94560992,2995.3,2994.6,0.96344158]
[1768941690559,0.94560992,2995.3,2994.6,1.98330643]
[1768941690783,0.94560992,2995.3,2994.6,0.96344158]
[1768941694477,0.97920992,2995.3,2994.6,0.96344158]
[1768941696173,0.97920992,2995.3,2994.7,6.23361084]
[1768941696373,0.0336,2995.3,2994.9,5.27016926]